[Event "Live Chess"]
[Site "Chess.com"]
[Date "2024.06.02"]
[Round "-"]
[White "JohanKjeldahl"]
[Black "LL220284LL"]
[Result "0-1"]
[WhiteElo "1793"]
[BlackElo "2467"]
[TimeControl "300"]
[EndTime "7:29:49 PDT"]
[Termination "LL220284LL won by resignation"]

1. c4 {[%clk 0:04:57.4]} 1... c6 {[%clk 0:04:56.9]} 2. e4 {[%clk 0:04:54.6]}
2... g6 {[%clk 0:04:56.4]} 3. Nc3 {[%clk 0:04:52.8]} 3... d6 {[%clk 0:04:56]} 4.
d4 {[%clk 0:04:51.7]} 4... Bg7 {[%clk 0:04:55.6]} 5. Be3 {[%clk 0:04:48.6]} 5...
Nd7 {[%clk 0:04:55.2]} 6. Qd2 {[%clk 0:04:47.7]} 6... Qa5 {[%clk 0:04:50.2]} 7.
f3 {[%clk 0:04:46.2]} 7... Rb8 {[%clk 0:04:48.2]} 8. Bd3 {[%clk 0:04:44.7]} 8...
b5 {[%clk 0:04:47]} 9. cxb5 {[%clk 0:04:42.7]} 9... cxb5 {[%clk 0:04:46.9]} 10.
Nge2 {[%clk 0:04:40.6]} 10... b4 {[%clk 0:04:46.3]} 11. Nd5 {[%clk 0:04:31.9]}
11... e6 {[%clk 0:04:40.2]} 12. Ndf4 {[%clk 0:04:29.7]} 12... Ba6 {[%clk
0:04:38.7]} 13. O-O {[%clk 0:04:23.9]} 13... Bxd3 {[%clk 0:04:35.2]} 14. Nxd3
{[%clk 0:04:22.5]} 14... Ngf6 {[%clk 0:04:35.1]} 15. a3 {[%clk 0:04:17.5]} 15...
Qb5 {[%clk 0:04:27]} 16. axb4 {[%clk 0:04:11.8]} 16... Qb7 {[%clk 0:04:21.3]}
17. Ra5 {[%clk 0:04:00]} 17... Nb6 {[%clk 0:04:18.1]} 18. Rfa1 {[%clk
0:03:56.8]} 18... Nc4 {[%clk 0:04:15.7]} 19. Qc3 {[%clk 0:03:52.5]} 19... Nxe3
{[%clk 0:04:13.3]} 20. Rxa7 {[%clk 0:03:48.6]} 20... Qc8 {[%clk 0:04:11.2]} 21.
e5 {[%clk 0:03:30]} 21... Qxc3 {[%clk 0:03:59.5]} 22. bxc3 {[%clk 0:03:28.8]}
22... dxe5 {[%clk 0:03:53.8]} 23. Nxe5 {[%clk 0:03:25.8]} 23... O-O {[%clk
0:03:52.4]} 24. Nd7 {[%clk 0:03:23.9]} 24... Nxd7 {[%clk 0:03:50.9]} 25. Rxd7
{[%clk 0:03:21.5]} 25... Rbc8 {[%clk 0:03:49.2]} 26. Raa7 {[%clk 0:03:18.6]}
26... Nd5 {[%clk 0:03:46.7]} 27. Ra3 {[%clk 0:03:10.7]} 27... Rc4 {[%clk
0:03:40.4]} 28. Kf2 {[%clk 0:03:05.1]} 28... Rfc8 {[%clk 0:03:38.4]} 29. b5
{[%clk 0:02:56.9]} 29... Nxc3 {[%clk 0:03:36.4]} 30. Nxc3 {[%clk 0:02:53.3]}
30... Rxc3 {[%clk 0:03:36.3]} 31. Rxc3 {[%clk 0:02:51.9]} 31... Rxc3 {[%clk
0:03:36.2]} 32. b6 {[%clk 0:02:48.8]} 32... Rb3 {[%clk 0:03:33.9]} 33. b7 {[%clk
0:02:47.9]} 33... Bf8 {[%clk 0:03:31.8]} 34. Kg3 {[%clk 0:02:43.5]} 34... Kg7
{[%clk 0:03:29.5]} 35. Kf4 {[%clk 0:02:42.2]} 35... Kf6 {[%clk 0:03:27.7]} 36.
g4 {[%clk 0:02:39.7]} 36... Bh6+ {[%clk 0:03:26.1]} 37. Kg3 {[%clk 0:02:35.1]}
37... Bc1 {[%clk 0:03:21.3]} 38. h4 {[%clk 0:02:29.7]} 38... h5 {[%clk
0:03:18.1]} 39. g5+ {[%clk 0:02:23.8]} 39... Kg7 {[%clk 0:03:17.1]} 40. d5
{[%clk 0:02:00.1]} 40... exd5 {[%clk 0:03:12.1]} 41. Rxd5 {[%clk 0:01:58.8]}
41... Rxb7 {[%clk 0:03:10.7]} 42. Rd3 {[%clk 0:01:53.9]} 42... Bb2 {[%clk
0:03:08.7]} 43. f4 {[%clk 0:01:50.8]} 43... Kf8 {[%clk 0:03:05.6]} 44. Kf3
{[%clk 0:01:41.6]} 44... Rc7 {[%clk 0:02:52.1]} 45. Ke4 {[%clk 0:01:37.3]} 45...
Re7+ {[%clk 0:02:47]} 46. Kf3 {[%clk 0:01:36]} 46... Rc7 {[%clk 0:02:42.6]} 47.
Ke4 {[%clk 0:01:33.7]} 47... Ke7 {[%clk 0:02:41.8]} 48. f5 {[%clk 0:01:31.2]}
48... Rc4+ {[%clk 0:02:39.6]} 49. Kd5 {[%clk 0:01:28.6]} 49... Rxh4 {[%clk
0:02:38.5]} 50. fxg6 {[%clk 0:01:27.5]} 50... fxg6 {[%clk 0:02:37.5]} 51. Rb3
{[%clk 0:01:23.2]} 51... Rd4+ {[%clk 0:02:31.4]} 52. Kc5 {[%clk 0:01:21.3]}
52... Rd2 {[%clk 0:02:30.5]} 53. Rb7+ {[%clk 0:01:18.8]} 53... Ke6 {[%clk
0:02:28.8]} 0-1

[Event "Live Chess"]
[Site "Chess.com"]
[Date "2024.06.02"]
[Round "-"]
[White "Crowded_House"]
[Black "Hoogleboogle"]
[Result "1-0"]
[WhiteElo "1647"]
[BlackElo "1258"]
[TimeControl "300"]
[EndTime "7:30:33 PDT"]
[Termination "Crowded_House won on time"]

1. d4 {[%clk 0:04:57.3]} 1... d5 {[%clk 0:04:57.9]} 2. Bg5 {[%clk 0:04:56.4]}
2... Nf6 {[%clk 0:04:54.2]} 3. e3 {[%clk 0:04:55.1]} 3... Bf5 {[%clk 0:04:51.1]}
4. Bd3 {[%clk 0:04:53.6]} 4... Bg6 {[%clk 0:04:47.5]} 5. c3 {[%clk 0:04:51.8]}
5... e6 {[%clk 0:04:28.2]} 6. Nf3 {[%clk 0:04:49.9]} 6... Be7 {[%clk 0:03:26.3]}
7. Qc2 {[%clk 0:04:45.8]} 7... c5 {[%clk 0:03:21.1]} 8. dxc5 {[%clk 0:04:43.4]}
8... Bxc5 {[%clk 0:03:19.6]} 9. Nbd2 {[%clk 0:04:36]} 9... Nc6 {[%clk
0:03:16.5]} 10. O-O {[%clk 0:04:29.4]} 10... Bd6 {[%clk 0:02:57.6]} 11. Rfe1
{[%clk 0:04:22.5]} 11... Bxd3 {[%clk 0:02:53.4]} 12. Qxd3 {[%clk 0:04:21.2]}
12... Ne5 {[%clk 0:02:51.7]} 13. Nxe5 {[%clk 0:04:18.2]} 13... Bxe5 {[%clk
0:02:50.6]} 14. Nf3 {[%clk 0:04:15.7]} 14... Bd6 {[%clk 0:02:48.2]} 15. e4
{[%clk 0:03:59.8]} 15... h6 {[%clk 0:02:38.8]} 16. Bxf6 {[%clk 0:03:55.7]} 16...
Qxf6 {[%clk 0:02:19.2]} 17. exd5 {[%clk 0:03:55]} 17... Rd8 {[%clk 0:02:08.5]}
18. Qb5+ {[%clk 0:03:49.7]} 18... Rd7 {[%clk 0:01:41.7]} 19. dxe6 {[%clk
0:03:48.2]} 19... fxe6 {[%clk 0:01:39.2]} 20. Rad1 {[%clk 0:03:32.7]} 20... a6
{[%clk 0:01:13.9]} 21. Qa4 {[%clk 0:03:23.4]} 21... b5 {[%clk 0:00:48.2]} 22.
Qe4 {[%clk 0:03:16.1]} 1-0

[Event "Live Chess"]
[Site "Chess.com"]
[Date "2024.06.02"]
[Round "-"]
[White "missedJariChance"]
[Black "ShanthamGrarks"]
[Result "1-0"]
[WhiteElo "1381"]
[BlackElo "1903"]
[TimeControl "300"]
[EndTime "7:30:34 PDT"]
[Termination "missedJariChance won by checkmate"]

1. b3 {[%clk 0:04:53.9]} 1... d5 {[%clk 0:04:57]} 2. Bb2 {[%clk 0:04:52.9]} 2...
c5 {[%clk 0:04:56.3]} 3. Nf3 {[%clk 0:04:51.5]} 3... Nc6 {[%clk 0:04:55.4]} 4.
e3 {[%clk 0:04:50.6]} 4... Nf6 {[%clk 0:04:54.9]} 5. c4 {[%clk 0:04:47.8]} 5...
Bg4 {[%clk 0:04:53.5]} 6. cxd5 {[%clk 0:04:44.4]} 6... Nxd5 {[%clk 0:04:51.8]}
7. Be2 {[%clk 0:04:42.6]} 7... e6 {[%clk 0:04:38.4]} 8. h3 {[%clk 0:04:38.8]}
8... Bh5 {[%clk 0:04:35.8]} 9. d4 {[%clk 0:04:27.9]} 9... cxd4 {[%clk
0:04:31.6]} 10. Nxd4 {[%clk 0:04:26.1]} 10... Bb4+ {[%clk 0:04:25.1]} 11. Nd2
{[%clk 0:04:16.1]} 11... Nxd4 {[%clk 0:04:07.4]} 12. Bxd4 {[%clk 0:04:09.9]}
12... Bxe2 {[%clk 0:04:05.1]} 13. Qxe2 {[%clk 0:04:06.5]} 13... Qa5 {[%clk
0:04:00]} 14. Rd1 {[%clk 0:03:40.7]} 14... Qxa2 {[%clk 0:03:57.3]} 15. O-O
{[%clk 0:03:38.5]} 15... Bxd2 {[%clk 0:03:44.6]} 16. Rxd2 {[%clk 0:03:15.8]}
16... Qxb3 {[%clk 0:03:41.8]} 17. Bxg7 {[%clk 0:03:11]} 17... Rg8 {[%clk
0:03:37.4]} 18. Rb2 {[%clk 0:03:08.8]} 18... Qa4 {[%clk 0:03:30.9]} 19. Bd4
{[%clk 0:03:01.4]} 19... b6 {[%clk 0:03:24.4]} 20. Rc1 {[%clk 0:02:53.3]} 20...
Qd7 {[%clk 0:03:08.4]} 21. Qh5 {[%clk 0:02:40]} 21... Rc8 {[%clk 0:02:57.1]} 22.
Rxc8+ {[%clk 0:02:12]} 22... Qxc8 {[%clk 0:02:54.8]} 23. Qxh7 {[%clk 0:02:07.7]}
23... Ne7 {[%clk 0:02:47.9]} 24. Bf6 {[%clk 0:01:58.5]} 24... Qb7 {[%clk
0:02:34.5]} 25. f3 {[%clk 0:01:55.1]} 25... Rf8 {[%clk 0:02:23.6]} 26. Qd3
{[%clk 0:01:44.8]} 26... Nd5 {[%clk 0:02:21.6]} 27. Rd2 {[%clk 0:01:30.2]} 27...
Qc6 {[%clk 0:02:03.1]} 28. e4 {[%clk 0:01:14]} 28... Qc5+ {[%clk 0:01:35.5]} 29.
Kh1 {[%clk 0:01:06.8]} 29... Qc1+ {[%clk 0:01:22.6]} 30. Rd1 {[%clk 0:01:05.4]}
30... Qf4 {[%clk 0:01:16.6]} 31. Qb5# {[%clk 0:00:39.5]} 1-0

[Event "Live Chess"]
[Site "Chess.com"]
[Date "2024.06.02"]
[Round "-"]
[White "PavelChernomordik"]
[Black "KeithArkell"]
[Result "1-0"]
[WhiteElo "2505"]
[BlackElo "2411"]
[TimeControl "300"]
[EndTime "7:30:38 PDT"]
[Termination "PavelChernomordik won by resignation"]

1. e4 {[%clk 0:04:56.4]} 1... c6 {[%clk 0:04:59.2]} 2. Nc3 {[%clk 0:04:55.2]}
2... d5 {[%clk 0:04:58.3]} 3. Nf3 {[%clk 0:04:54.1]} 3... Bg4 {[%clk 0:04:56.9]}
4. h3 {[%clk 0:04:52.5]} 4... Bxf3 {[%clk 0:04:56.3]} 5. Qxf3 {[%clk 0:04:51.3]}
5... dxe4 {[%clk 0:04:55.9]} 6. Nxe4 {[%clk 0:04:49.7]} 6... Nd7 {[%clk
0:04:55.6]} 7. Ng5 {[%clk 0:04:48.2]} 7... Ngf6 {[%clk 0:04:50.9]} 8. Qb3 {[%clk
0:04:47]} 8... e6 {[%clk 0:04:47.4]} 9. Qxb7 {[%clk 0:04:45.4]} 9... Rc8 {[%clk
0:04:45.3]} 10. d4 {[%clk 0:04:34.9]} 10... c5 {[%clk 0:04:40.8]} 11. Bf4 {[%clk
0:04:24.1]} 11... cxd4 {[%clk 0:04:36.2]} 12. O-O-O {[%clk 0:04:15.1]} 12... Bc5
{[%clk 0:04:34.8]} 13. Ba6 {[%clk 0:04:11.8]} 13... O-O {[%clk 0:04:32.8]} 14.
Qxc8 {[%clk 0:04:07.7]} 14... Qxc8 {[%clk 0:04:32.1]} 15. Bxc8 {[%clk
0:04:06.4]} 15... Rxc8 {[%clk 0:04:32]} 16. Nf3 {[%clk 0:03:59.2]} 16... Nd5
{[%clk 0:04:29.6]} 17. Bg3 {[%clk 0:03:50]} 17... Nb4 {[%clk 0:04:26.3]} 18.
Nxd4 {[%clk 0:03:37.1]} 18... Nxa2+ {[%clk 0:04:15]} 19. Kb1 {[%clk 0:03:35.5]}
19... Nb4 {[%clk 0:04:14.2]} 20. Nxe6 {[%clk 0:03:30]} 20... fxe6 {[%clk
0:04:11.2]} 21. Rxd7 {[%clk 0:03:27.2]} 21... Nxc2 {[%clk 0:04:10.5]} 22. Kxc2
{[%clk 0:03:23.6]} 22... Bxf2+ {[%clk 0:04:09.6]} 23. Rc7 {[%clk 0:03:22.3]} 1-0

[Event "Live Chess"]
[Site "Chess.com"]
[Date "2024.06.02"]
[Round "-"]
[White "nitrofish07"]
[Black "GerardATHart"]
[Result "1/2-1/2"]
[WhiteElo "2085"]
[BlackElo "1412"]
[TimeControl "300"]
[EndTime "7:30:55 PDT"]
[Termination "Game drawn by agreement"]

1. e4 {[%clk 0:04:58.3]} 1... e5 {[%clk 0:04:57.8]} 2. Nc3 {[%clk 0:04:57.4]}
2... Nf6 {[%clk 0:04:55.7]} 3. f4 {[%clk 0:04:56.8]} 3... d5 {[%clk 0:04:54.3]}
4. fxe5 {[%clk 0:04:53.9]} 4... Nxe4 {[%clk 0:04:52.3]} 5. d4 {[%clk 0:04:53.5]}
5... f5 {[%clk 0:04:50.1]} 6. Nf3 {[%clk 0:04:51.6]} 6... Be7 {[%clk 0:04:45.5]}
7. Bd3 {[%clk 0:04:50.7]} 7... O-O {[%clk 0:04:42.7]} 8. O-O {[%clk 0:04:49.6]}
8... Be6 {[%clk 0:04:40.5]} 9. Kh1 {[%clk 0:04:47.5]} 9... Nc6 {[%clk
0:04:37.9]} 10. Qe1 {[%clk 0:04:45.5]} 10... Nb4 {[%clk 0:04:35.6]} 11. a3
{[%clk 0:04:42.1]} 11... Nxd3 {[%clk 0:04:34.2]} 12. cxd3 {[%clk 0:04:42]} 12...
Ng5 {[%clk 0:04:28.2]} 13. Bxg5 {[%clk 0:04:38.6]} 13... Bxg5 {[%clk 0:04:26.4]}
14. Qg3 {[%clk 0:04:35.9]} 14... Bh6 {[%clk 0:04:05.2]} 15. b4 {[%clk
0:04:33.1]} 15... g5 {[%clk 0:03:57.8]} 16. Rac1 {[%clk 0:04:28.3]} 16... f4
{[%clk 0:03:55.9]} 17. Qf2 {[%clk 0:04:22.6]} 17... g4 {[%clk 0:03:54.4]} 18.
Nd2 {[%clk 0:04:15.8]} 18... Qg5 {[%clk 0:03:39.4]} 19. Ne2 {[%clk 0:04:02.3]}
19... f3 {[%clk 0:03:20.1]} 20. Nxf3 {[%clk 0:04:00.6]} 20... gxf3 {[%clk
0:03:15.7]} 21. gxf3 {[%clk 0:04:00.5]} 21... Qe3 {[%clk 0:03:09.5]} 22. Qxe3
{[%clk 0:03:52.3]} 22... Bxe3 {[%clk 0:03:07.6]} 23. Rxc7 {[%clk 0:03:52.2]}
23... Bh3 {[%clk 0:03:05.5]} 24. Re1 {[%clk 0:03:42.8]} 24... Rxf3 {[%clk
0:03:03.6]} 25. Ng3 {[%clk 0:03:36.9]} 25... Bxd4 {[%clk 0:02:55.8]} 26. e6
{[%clk 0:03:33.1]} 26... Re8 {[%clk 0:02:53.2]} 27. Rxb7 {[%clk 0:03:28.2]}
27... Rf2 {[%clk 0:02:51.2]} 28. Rg1 {[%clk 0:03:23.3]} 28... Rd2 {[%clk
0:02:40.4]} 29. Nf5+ {[%clk 0:03:20.1]} 29... Bxg1 {[%clk 0:02:36.1]} 30. Nh6+
{[%clk 0:03:15]} 30... Kh8 {[%clk 0:02:30.1]} 31. Nf7+ {[%clk 0:03:06.2]} 31...
Kg8 {[%clk 0:02:21.3]} 32. Nh6+ {[%clk 0:03:02.5]} 32... Kh8 {[%clk 0:02:14.7]}
33. Nf7+ {[%clk 0:03:01.4]} 33... Kg8 {[%clk 0:02:11.8]} 1/2-1/2

[Event "Live Chess"]
[Site "Chess.com"]
[Date "2024.06.02"]
[Round "-"]
[White "kylet1990"]
[Black "DJ_Lambton"]
[Result "0-1"]
[WhiteElo "750"]
[BlackElo "1820"]
[TimeControl "300"]
[EndTime "7:30:55 PDT"]
[Termination "DJ_Lambton won by resignation"]

1. e4 {[%clk 0:04:58.8]} 1... c6 {[%clk 0:04:58.7]} 2. Nc3 {[%clk 0:04:56.3]}
2... d5 {[%clk 0:04:58.1]} 3. Nf3 {[%clk 0:04:54.7]} 3... Bg4 {[%clk 0:04:56.6]}
4. exd5 {[%clk 0:04:53.2]} 4... cxd5 {[%clk 0:04:55.8]} 5. d4 {[%clk 0:04:52]}
5... e6 {[%clk 0:04:55]} 6. h3 {[%clk 0:04:50.4]} 6... Bxf3 {[%clk 0:04:53.9]}
7. Qxf3 {[%clk 0:04:49.4]} 7... Nc6 {[%clk 0:04:53.6]} 8. Bf4 {[%clk 0:04:47.6]}
8... Nxd4 {[%clk 0:04:51.3]} 9. Qd1 {[%clk 0:04:43.4]} 9... Nc6 {[%clk
0:04:49.2]} 10. Nb5 {[%clk 0:04:41.5]} 10... Rc8 {[%clk 0:04:47.2]} 11. Bd3
{[%clk 0:04:33.1]} 11... a6 {[%clk 0:04:45.5]} 12. Nd6+ {[%clk 0:04:25.3]} 12...
Bxd6 {[%clk 0:04:44.1]} 13. Bxd6 {[%clk 0:04:24]} 13... Qxd6 {[%clk 0:04:44]}
14. O-O {[%clk 0:04:21.6]} 14... Nf6 {[%clk 0:04:42.7]} 15. Re1 {[%clk
0:04:18.1]} 15... O-O {[%clk 0:04:41.5]} 16. c4 {[%clk 0:04:13.9]} 16... dxc4
{[%clk 0:04:39.3]} 17. Bxc4 {[%clk 0:04:12.4]} 17... Qxd1 {[%clk 0:04:37.9]} 18.
Raxd1 {[%clk 0:04:11.4]} 18... b5 {[%clk 0:04:37.1]} 19. Bd3 {[%clk 0:04:08.8]}
19... Rfd8 {[%clk 0:04:35.9]} 20. g4 {[%clk 0:04:01.8]} 20... Nb4 {[%clk
0:04:34.8]} 21. Re3 {[%clk 0:03:57.1]} 21... Rd6 {[%clk 0:04:18.6]} 22. Bxh7+
{[%clk 0:03:53.3]} 22... Kxh7 {[%clk 0:04:15.9]} 23. Rxd6 {[%clk 0:03:51.4]}
23... Rc1+ {[%clk 0:04:03.3]} 24. Kg2 {[%clk 0:03:48.4]} 24... Nbd5 {[%clk
0:04:02.3]} 25. Ra3 {[%clk 0:03:33]} 25... Rd1 {[%clk 0:03:50.2]} 26. Raxa6
{[%clk 0:03:29.6]} 26... Rd3 {[%clk 0:03:48.9]} 27. Ra5 {[%clk 0:03:17.6]} 27...
Nf4+ {[%clk 0:03:47.6]} 28. Kh2 {[%clk 0:03:13.9]} 28... Rxh3+ {[%clk
0:03:46.7]} 29. Kg1 {[%clk 0:03:08.2]} 29... Ne4 {[%clk 0:03:46.3]} 30. f3
{[%clk 0:02:56.9]} 30... Nxd6 {[%clk 0:03:34]} 31. Ra6 {[%clk 0:02:54.8]} 31...
Nc4 {[%clk 0:03:29.4]} 0-1

[Event "Live Chess"]
[Site "Chess.com"]
[Date "2024.06.02"]
[Round "-"]
[White "FlyingChessKestrel13"]
[Black "DoctorMantisTobogganMD"]
[Result "0-1"]
[WhiteElo "2062"]
[BlackElo "2240"]
[TimeControl "300"]
[EndTime "7:30:56 PDT"]
[Termination "DoctorMantisTobogganMD won by resignation"]

1. e4 {[%clk 0:04:57.4]} 1... g6 {[%clk 0:04:58.8]} 2. d4 {[%clk 0:04:53.8]}
2... c6 {[%clk 0:04:58.7]} 3. Nc3 {[%clk 0:04:52.8]} 3... Bg7 {[%clk 0:04:56.1]}
4. Nge2 {[%clk 0:04:50]} 4... d5 {[%clk 0:04:55.5]} 5. e5 {[%clk 0:04:41]} 5...
h5 {[%clk 0:04:53.9]} 6. Be3 {[%clk 0:04:38.7]} 6... b5 {[%clk 0:04:52.2]} 7. a3
{[%clk 0:04:37.3]} 7... a5 {[%clk 0:04:51.3]} 8. g3 {[%clk 0:04:34.4]} 8... Bg4
{[%clk 0:04:50]} 9. Bg2 {[%clk 0:04:32.9]} 9... Bxe2 {[%clk 0:04:49.3]} 10. Qxe2
{[%clk 0:04:31.6]} 10... e6 {[%clk 0:04:49.2]} 11. O-O {[%clk 0:04:30.5]} 11...
Nd7 {[%clk 0:04:47.4]} 12. f4 {[%clk 0:04:28.5]} 12... Nh6 {[%clk 0:04:46.4]}
13. Bf2 {[%clk 0:04:26.3]} 13... Bf8 {[%clk 0:04:44.8]} 14. h3 {[%clk
0:04:23.3]} 14... Nf5 {[%clk 0:04:36.6]} 15. g4 {[%clk 0:04:22.1]} 15... Nh4
{[%clk 0:04:34.3]} 16. Bh1 {[%clk 0:04:17.9]} 16... hxg4 {[%clk 0:04:28.9]} 17.
Qxg4 {[%clk 0:04:14.6]} 17... Be7 {[%clk 0:04:28]} 18. Ne2 {[%clk 0:04:05.8]}
18... Nf5 {[%clk 0:04:25.9]} 19. b3 {[%clk 0:04:00.6]} 19... a4 {[%clk
0:04:23.6]} 20. bxa4 {[%clk 0:03:53.4]} 20... Rxa4 {[%clk 0:04:22]} 21. c3
{[%clk 0:03:52.6]} 21... Qa5 {[%clk 0:04:19]} 22. c4 {[%clk 0:03:38.4]} 22...
bxc4 {[%clk 0:04:14.1]} 23. Be1 {[%clk 0:03:37.2]} 23... Qa7 {[%clk 0:04:11.9]}
24. Bc3 {[%clk 0:03:29.6]} 24... c5 {[%clk 0:04:07.7]} 25. dxc5 {[%clk
0:03:27.9]} 25... Nxc5 {[%clk 0:04:03.1]} 26. Kh2 {[%clk 0:03:24.9]} 26... Nb3
{[%clk 0:03:56.3]} 27. Rfd1 {[%clk 0:03:21.3]} 27... Rxa3 {[%clk 0:03:55]} 28.
Rxa3 {[%clk 0:03:19.9]} 28... Qxa3 {[%clk 0:03:54.9]} 29. Bg2 {[%clk 0:03:03.9]}
29... Ne3 {[%clk 0:03:47.5]} 0-1

[Event "Live Chess"]
[Site "Chess.com"]
[Date "2024.06.02"]
[Round "-"]
[White "lyricalschemes"]
[Black "GwaryTek"]
[Result "1-0"]
[WhiteElo "2221"]
[BlackElo "1870"]
[TimeControl "300"]
[EndTime "7:31:01 PDT"]
[Termination "lyricalschemes won on time"]

1. e4 {[%clk 0:04:58.6]} 1... Nf6 {[%clk 0:04:57.6]} 2. Nc3 {[%clk 0:04:57.1]}
2... d5 {[%clk 0:04:55.7]} 3. e5 {[%clk 0:04:56]} 3... Ne4 {[%clk 0:04:54.8]} 4.
d4 {[%clk 0:04:52.1]} 4... Nxc3 {[%clk 0:04:53.9]} 5. bxc3 {[%clk 0:04:43.4]}
5... c5 {[%clk 0:04:53.8]} 6. Nf3 {[%clk 0:04:40.8]} 6... Nc6 {[%clk 0:04:50.4]}
7. Be2 {[%clk 0:04:37.3]} 7... Bg4 {[%clk 0:04:33.5]} 8. O-O {[%clk 0:04:31.3]}
8... e6 {[%clk 0:04:32]} 9. Bg5 {[%clk 0:04:26.5]} 9... Qd7 {[%clk 0:04:25.1]}
10. h3 {[%clk 0:04:24.2]} 10... Bh5 {[%clk 0:04:22.6]} 11. Rb1 {[%clk
0:04:20.1]} 11... h6 {[%clk 0:04:13.6]} 12. Bh4 {[%clk 0:04:16.9]} 12... g5
{[%clk 0:04:11.9]} 13. Bg3 {[%clk 0:04:13.4]} 13... Bg7 {[%clk 0:04:11.3]} 14.
Qd3 {[%clk 0:04:08.5]} 14... Bg6 {[%clk 0:04:03.3]} 15. Qd2 {[%clk 0:04:05.6]}
15... Rc8 {[%clk 0:03:57.7]} 16. dxc5 {[%clk 0:04:00.9]} 16... O-O {[%clk
0:03:51.8]} 17. Bd3 {[%clk 0:03:54.8]} 17... Bh5 {[%clk 0:03:42.6]} 18. Nd4
{[%clk 0:03:48.5]} 18... Nxe5 {[%clk 0:03:37]} 19. Bxe5 {[%clk 0:03:38.2]} 19...
Bxe5 {[%clk 0:03:34]} 20. g4 {[%clk 0:03:37.9]} 20... Bf4 {[%clk 0:03:10.3]} 21.
Qe2 {[%clk 0:03:32.5]} 21... Rxc5 {[%clk 0:02:38.7]} 22. gxh5 {[%clk 0:03:25.2]}
22... Rxc3 {[%clk 0:02:37.6]} 23. Nf3 {[%clk 0:03:15.7]} 23... a6 {[%clk
0:02:11.9]} 24. Kg2 {[%clk 0:03:11.5]} 24... Re8 {[%clk 0:02:07.3]} 25. Ne5
{[%clk 0:03:08.5]} 25... Qc7 {[%clk 0:02:02.5]} 26. Ng4 {[%clk 0:03:05.9]} 26...
Kg7 {[%clk 0:01:58.9]} 27. Rfe1 {[%clk 0:02:58.7]} 27... Ra3 {[%clk 0:01:36.7]}
28. c4 {[%clk 0:02:52.4]} 28... dxc4 {[%clk 0:01:10.7]} 29. Bxc4 {[%clk
0:02:50.5]} 29... Qc6+ {[%clk 0:01:06.7]} 30. Kg1 {[%clk 0:02:46.5]} 30... Rxh3
{[%clk 0:01:03.9]} 31. Qb2+ {[%clk 0:02:37.7]} 31... e5 {[%clk 0:00:22.6]} 32.
f3 {[%clk 0:02:28.8]} 32... Qxc4 {[%clk 0:00:11.3]} 33. Qg2 {[%clk 0:02:26]}
33... Rg3 {[%clk 0:00:09.8]} 34. Rbd1 {[%clk 0:02:17.5]} 34... Rxg2+ {[%clk
0:00:08.5]} 35. Kxg2 {[%clk 0:02:17.4]} 35... f6 {[%clk 0:00:06.5]} 36. Nf2
{[%clk 0:02:16.6]} 36... Qc6 {[%clk 0:00:04.9]} 37. Re4 {[%clk 0:02:15.8]} 37...
g4 {[%clk 0:00:04.2]} 38. Nxg4 {[%clk 0:02:14.7]} 38... f5 {[%clk 0:00:03.6]}
39. Nxe5 {[%clk 0:02:14.2]} 39... Bxe5 {[%clk 0:00:02]} 40. Rd7+ {[%clk
0:02:14.1]} 40... Qxd7 {[%clk 0:00:00.7]} 41. Rxe5 {[%clk 0:02:14]} 1-0

[Event "Live Chess"]
[Site "Chess.com"]
[Date "2024.06.02"]
[Round "-"]
[White "gmnorfolk"]
[Black "JanMur7"]
[Result "0-1"]
[WhiteElo "2154"]
[BlackElo "2300"]
[TimeControl "300"]
[EndTime "7:31:15 PDT"]
[Termination "JanMur7 won by checkmate"]

1. c4 {[%clk 0:04:57.7]} 1... c5 {[%clk 0:04:58.4]} 2. Nc3 {[%clk 0:04:53.9]}
2... Nc6 {[%clk 0:04:57.8]} 3. Nf3 {[%clk 0:04:53.4]} 3... g6 {[%clk 0:04:56.3]}
4. g3 {[%clk 0:04:51.7]} 4... Bg7 {[%clk 0:04:55]} 5. Bg2 {[%clk 0:04:51.4]}
5... e6 {[%clk 0:04:54.5]} 6. O-O {[%clk 0:04:50]} 6... Nge7 {[%clk 0:04:54]} 7.
e3 {[%clk 0:04:40.3]} 7... O-O {[%clk 0:04:51.6]} 8. d4 {[%clk 0:04:38.8]} 8...
cxd4 {[%clk 0:04:51.2]} 9. exd4 {[%clk 0:04:37.6]} 9... d5 {[%clk 0:04:50.4]}
10. cxd5 {[%clk 0:04:33.2]} 10... exd5 {[%clk 0:04:47.6]} 11. Bf4 {[%clk
0:04:26.7]} 11... Bg4 {[%clk 0:04:44.9]} 12. h3 {[%clk 0:04:18.2]} 12... Bxf3
{[%clk 0:04:43.2]} 13. Qxf3 {[%clk 0:04:15.8]} 13... Nxd4 {[%clk 0:04:42.7]} 14.
Qd3 {[%clk 0:04:14.8]} 14... Ne6 {[%clk 0:04:40.4]} 15. Bd2 {[%clk 0:04:04]}
15... Nc5 {[%clk 0:04:31.3]} 16. Qb5 {[%clk 0:03:56.6]} 16... Qb6 {[%clk
0:04:24.5]} 17. Qxb6 {[%clk 0:03:53.9]} 17... axb6 {[%clk 0:04:24.4]} 18. Rfd1
{[%clk 0:03:29.3]} 18... Rfd8 {[%clk 0:04:10.7]} 19. Bf4 {[%clk 0:03:25]} 19...
d4 {[%clk 0:04:02]} 20. Nb5 {[%clk 0:03:14.4]} 20... d3 {[%clk 0:03:53.7]} 21.
Bc7 {[%clk 0:03:06.2]} 21... Rd7 {[%clk 0:03:45.6]} 22. Bxb6 {[%clk 0:03:04.6]}
22... Na4 {[%clk 0:03:32.4]} 23. Be3 {[%clk 0:02:57.5]} 23... Nxb2 {[%clk
0:03:24.4]} 24. Rf1 {[%clk 0:02:55.5]} 24... Nc4 {[%clk 0:03:22.5]} 25. Rad1
{[%clk 0:02:51.8]} 25... Nxe3 {[%clk 0:03:17.9]} 26. fxe3 {[%clk 0:02:47.5]}
26... Rxa2 {[%clk 0:03:14.6]} 27. Nd4 {[%clk 0:02:44.9]} 27... Bxd4 {[%clk
0:03:10.4]} 28. Rxd3 {[%clk 0:02:42.8]} 28... Bxe3+ {[%clk 0:03:00.8]} 29. Rxe3
{[%clk 0:02:40.1]} 29... Nf5 {[%clk 0:02:59.6]} 30. Re8+ {[%clk 0:02:25.5]}
30... Kg7 {[%clk 0:02:54.8]} 31. g4 {[%clk 0:02:12.6]} 31... Rdd2 {[%clk
0:02:50.8]} 32. Be4 {[%clk 0:02:10.2]} 32... Ng3 {[%clk 0:02:42.7]} 33. Re1
{[%clk 0:02:01.8]} 33... Nxe4 {[%clk 0:02:38.5]} 34. R8xe4 {[%clk 0:01:58.7]}
34... Rg2+ {[%clk 0:02:37.1]} 35. Kh1 {[%clk 0:01:57.3]} 35... Rh2+ {[%clk
0:02:36.7]} 36. Kg1 {[%clk 0:01:56.5]} 36... Rag2+ {[%clk 0:02:35.6]} 37. Kf1
{[%clk 0:01:55.5]} 37... Ra2 {[%clk 0:02:34.3]} 38. R4e3 {[%clk 0:01:49.1]}
38... Rh1# {[%clk 0:02:32.9]} 0-1